[Event "Late-Titled-Tuesday-Blitz-January-30-2024"]
[Site "Chess.com"]
[Date "2024.01.30"]
[Round "7"]
[White "M1711"]
[Black "rhungaski"]
[Result "1-0"]
[WhiteElo "2659"]
[BlackElo "2501"]
[TimeControl "180+1"]
[EndTime "15:18:10 PST"]
[Termination "M1711 won by resignation"]

1. e4 {[%clk 0:03:00.9]} 1... g6 {[%clk 0:02:58]} 2. d4 {[%clk 0:03:00.9]} 2...
Bg7 {[%clk 0:02:58.2]} 3. Nc3 {[%clk 0:03:01.3]} 3... d6 {[%clk 0:02:58.8]} 4.
Be3 {[%clk 0:03:01.7]} 4... a6 {[%clk 0:02:58.9]} 5. h4 {[%clk 0:03:01.4]} 5...
h6 {[%clk 0:02:58.8]} 6. h5 {[%clk 0:03:01]} 6... g5 {[%clk 0:02:58.9]} 7. f4
{[%clk 0:03:00.4]} 7... gxf4 {[%clk 0:02:58.9]} 8. Bxf4 {[%clk 0:03:01.1]} 8...
b5 {[%clk 0:02:51.6]} 9. Nf3 {[%clk 0:02:43.4]} 9... Nd7 {[%clk 0:02:49.8]} 10.
a3 {[%clk 0:02:32.9]} 10... Bb7 {[%clk 0:02:49.7]} 11. d5 {[%clk 0:02:29.9]}
11... c6 {[%clk 0:02:37.7]} 12. dxc6 {[%clk 0:02:19.4]} 12... Bxc6 {[%clk
0:02:38.6]} 13. Nd4 {[%clk 0:02:19.7]} 13... Qb6 {[%clk 0:02:20.5]} 14. Be3
{[%clk 0:02:09.4]} 14... Qb7 {[%clk 0:02:12.1]} 15. Be2 {[%clk 0:01:34.5]} 15...
Ngf6 {[%clk 0:01:47.6]} 16. Bf3 {[%clk 0:01:18]} 16... Ne5 {[%clk 0:01:39.9]}
17. Nf5 {[%clk 0:01:13.3]} 17... Bf8 {[%clk 0:01:38.5]} 18. Qd4 {[%clk
0:01:05.4]} 18... Rd8 {[%clk 0:01:13.2]} 19. Rd1 {[%clk 0:01:00.7]} 19... e6
{[%clk 0:01:10.2]} 20. Ng3 {[%clk 0:00:59.7]} 20... Rg8 {[%clk 0:01:01.9]} 21.
Nge2 {[%clk 0:00:52.9]} 21... Nfg4 {[%clk 0:00:44]} 22. Bf4 {[%clk 0:00:42.4]}
22... Bg7 {[%clk 0:00:18.8]} 23. Qd2 {[%clk 0:00:39.6]} 23... Qb6 {[%clk
0:00:17.6]} 24. Rf1 {[%clk 0:00:19]} 24... Bb7 {[%clk 0:00:15.1]} 25. b3 {[%clk
0:00:17.4]} 25... a5 {[%clk 0:00:14.3]} 26. a4 {[%clk 0:00:16.9]} 26... b4
{[%clk 0:00:14]} 27. Nb5 {[%clk 0:00:17.6]} 27... Bf8 {[%clk 0:00:13.2]} 28. Nc1
{[%clk 0:00:15]} 28... Be7 {[%clk 0:00:12.6]} 29. Nd3 {[%clk 0:00:14.7]} 29...
Nxf3+ {[%clk 0:00:12.3]} 30. gxf3 {[%clk 0:00:13.5]} 30... Ne5 {[%clk
0:00:11.4]} 31. Be3 {[%clk 0:00:12.2]} 31... Qc6 {[%clk 0:00:10.6]} 32. Qe2
{[%clk 0:00:09.7]} 32... Nxd3+ {[%clk 0:00:09.9]} 33. Rxd3 {[%clk 0:00:10.3]}
33... d5 {[%clk 0:00:09.6]} 34. Bxh6 {[%clk 0:00:06.9]} 34... dxe4 {[%clk
0:00:09]} 35. fxe4 {[%clk 0:00:06.3]} 35... Rxd3 {[%clk 0:00:08.6]} 36. cxd3
{[%clk 0:00:05.9]} 36... Bh4+ {[%clk 0:00:09.1]} 37. Kd1 {[%clk 0:00:05.9]}
37... Rg3 {[%clk 0:00:05.7]} 38. Bd2 {[%clk 0:00:05.8]} 38... Bf6 {[%clk
0:00:05.2]} 39. Rxf6 {[%clk 0:00:05.2]} 39... Rh3 {[%clk 0:00:05.1]} 40. Rf1
{[%clk 0:00:03.9]} 40... Qc5 {[%clk 0:00:03.9]} 41. d4 {[%clk 0:00:03.8]} 41...
Qc6 {[%clk 0:00:02.1]} 42. d5 {[%clk 0:00:04.4]} 42... Qc5 {[%clk 0:00:02.1]}
43. h6 {[%clk 0:00:04.3]} 43... Rxb3 {[%clk 0:00:02.5]} 44. Bc1 {[%clk
0:00:02.2]} 44... Rb1 {[%clk 0:00:02.3]} 45. Qc2 {[%clk 0:00:02.4]} 45... Qd4+
{[%clk 0:00:02.6]} 46. Nxd4 {[%clk 0:00:02.4]} 1-0

[Event "Late-Titled-Tuesday-Blitz-January-30-2024"]
[Site "Chess.com"]
[Date "2024.01.30"]
[Round "7"]
[White "reevecanada"]
[Black "ArchibaldCerveza29"]
[Result "0-1"]
[WhiteElo "2592"]
[BlackElo "2503"]
[TimeControl "180+1"]
[EndTime "15:18:11 PST"]
[Termination "ArchibaldCerveza29 won by checkmate"]

1. e4 {[%clk 0:02:59.4]} 1... b6 {[%clk 0:02:59.3]} 2. Nf3 {[%clk 0:02:59.6]}
2... Bb7 {[%clk 0:03:00.2]} 3. Nc3 {[%clk 0:02:59.6]} 3... g6 {[%clk 0:03:01.1]}
4. d4 {[%clk 0:02:59.9]} 4... Bg7 {[%clk 0:03:02]} 5. h4 {[%clk 0:03:00]} 5...
h6 {[%clk 0:03:01.8]} 6. h5 {[%clk 0:02:59.7]} 6... g5 {[%clk 0:03:02.1]} 7. Bd3
{[%clk 0:03:00.3]} 7... d6 {[%clk 0:03:02.1]} 8. Be3 {[%clk 0:02:59.6]} 8... Nd7
{[%clk 0:03:01.1]} 9. O-O {[%clk 0:02:58.5]} 9... e6 {[%clk 0:02:59.7]} 10. Qe2
{[%clk 0:02:52.9]} 10... Ndf6 {[%clk 0:02:55.3]} 11. Nd2 {[%clk 0:02:43.4]}
11... Ne7 {[%clk 0:02:53.8]} 12. Rad1 {[%clk 0:02:20.8]} 12... a6 {[%clk
0:02:47.4]} 13. Nb3 {[%clk 0:02:18.5]} 13... Qc8 {[%clk 0:02:44.7]} 14. f4
{[%clk 0:02:16.6]} 14... gxf4 {[%clk 0:02:37.2]} 15. Bxf4 {[%clk 0:02:15]} 15...
Rg8 {[%clk 0:02:37.6]} 16. Kh1 {[%clk 0:02:13.4]} 16... Nc6 {[%clk 0:02:14.7]}
17. e5 {[%clk 0:01:56.8]} 17... dxe5 {[%clk 0:02:13]} 18. dxe5 {[%clk
0:01:57.7]} 18... Nd7 {[%clk 0:02:11.2]} 19. Bh7 {[%clk 0:01:55.3]} 19... Rh8
{[%clk 0:02:10.2]} 20. Be4 {[%clk 0:01:34.5]} 20... Ncxe5 {[%clk 0:02:01.4]} 21.
Bxe5 {[%clk 0:01:31.8]} 21... Nxe5 {[%clk 0:01:59.5]} 22. Nd4 {[%clk 0:01:19.2]}
22... c5 {[%clk 0:01:28.5]} 23. Nf3 {[%clk 0:00:32.5]} 23... Nc6 {[%clk
0:01:14.3]} 24. Qf2 {[%clk 0:00:26.6]} 24... Qc7 {[%clk 0:01:07.5]} 25. Nh4
{[%clk 0:00:19.6]} 25... Nd4 {[%clk 0:01:03.8]} 26. Nf3 {[%clk 0:00:12.7]} 26...
Rf8 {[%clk 0:00:52.6]} 27. Qh4 {[%clk 0:00:09]} 27... Bxe4 {[%clk 0:00:40.2]}
28. Qxe4 {[%clk 0:00:09.9]} 28... Nf5 {[%clk 0:00:40.8]} 29. Qxa8+ {[%clk
0:00:09.4]} 29... Ke7 {[%clk 0:00:39.4]} 30. Qe4 {[%clk 0:00:09.9]} 30... Ng3+
{[%clk 0:00:39.3]} 31. Kg1 {[%clk 0:00:09]} 31... Nxe4 {[%clk 0:00:40.2]} 32.
Nxe4 {[%clk 0:00:09]} 32... Rd8 {[%clk 0:00:38.2]} 33. c3 {[%clk 0:00:09.3]}
33... f5 {[%clk 0:00:36.7]} 34. Nf2 {[%clk 0:00:08]} 34... b5 {[%clk 0:00:35.3]}
35. Nh3 {[%clk 0:00:05.7]} 35... Rxd1 {[%clk 0:00:34.5]} 36. Rxd1 {[%clk
0:00:05.4]} 36... e5 {[%clk 0:00:33.9]} 37. Nh4 {[%clk 0:00:05.8]} 37... Ke6
{[%clk 0:00:31.6]} 38. Rf1 {[%clk 0:00:04.6]} 38... f4 {[%clk 0:00:30.2]} 39.
Ng6 {[%clk 0:00:05.5]} 39... c4 {[%clk 0:00:27.3]} 40. g3 {[%clk 0:00:05.2]}
40... fxg3 {[%clk 0:00:22.8]} 41. Rf3 {[%clk 0:00:03.9]} 41... e4 {[%clk
0:00:19.3]} 42. Ngf4+ {[%clk 0:00:01.8]} 42... Kd7 {[%clk 0:00:19.1]} 43. Rxg3
{[%clk 0:00:02.4]} 43... Be5 {[%clk 0:00:18.6]} 44. Rg4 {[%clk 0:00:03.1]} 44...
Kc8 {[%clk 0:00:18.4]} 45. Nd5 {[%clk 0:00:02.9]} 45... Qc5+ {[%clk 0:00:18.4]}
46. Kf1 {[%clk 0:00:03.5]} 46... Qxd5 {[%clk 0:00:18.9]} 47. Nf2 {[%clk
0:00:04.3]} 47... e3 {[%clk 0:00:18.4]} 48. Re4 {[%clk 0:00:04.2]} 48... exf2
{[%clk 0:00:18.4]} 49. Re2 {[%clk 0:00:05.1]} 49... Qd3 {[%clk 0:00:18.5]} 50.
Kxf2 {[%clk 0:00:05.3]} 50... Bf4 {[%clk 0:00:19]} 51. Kf1 {[%clk 0:00:06.2]}
51... Bg3 {[%clk 0:00:19.2]} 52. Kg2 {[%clk 0:00:05.8]} 52... Qxe2+ {[%clk
0:00:19.4]} 53. Kxg3 {[%clk 0:00:06.7]} 53... Qxb2 {[%clk 0:00:20.2]} 54. Kf4
{[%clk 0:00:07.3]} 54... Qxa2 {[%clk 0:00:21.1]} 55. Kf5 {[%clk 0:00:08.2]}
55... Qb3 {[%clk 0:00:22]} 56. Kg6 {[%clk 0:00:09]} 56... Qxc3 {[%clk
0:00:22.9]} 57. Kxh6 {[%clk 0:00:09.5]} 57... Qh3 {[%clk 0:00:23]} 58. Kg6
{[%clk 0:00:10.4]} 58... Qxh5+ {[%clk 0:00:23.9]} 59. Kxh5 {[%clk 0:00:10.4]}
59... b4 {[%clk 0:00:24.8]} 60. Kg6 {[%clk 0:00:11.3]} 60... b3 {[%clk
0:00:25.7]} 61. Kh6 {[%clk 0:00:12.2]} 61... b2 {[%clk 0:00:26.6]} 62. Kh7
{[%clk 0:00:13.1]} 62... b1=Q+ {[%clk 0:00:27.5]} 63. Kg8 {[%clk 0:00:13.7]}
63... Qg1+ {[%clk 0:00:28.2]} 64. Kh8 {[%clk 0:00:14.3]} 64... c3 {[%clk
0:00:28.2]} 65. Kh7 {[%clk 0:00:15.2]} 65... c2 {[%clk 0:00:29.1]} 66. Kh8
{[%clk 0:00:16.1]} 66... c1=Q {[%clk 0:00:29.3]} 67. Kh7 {[%clk 0:00:17]} 67...
Qf4 {[%clk 0:00:29.4]} 68. Kh8 {[%clk 0:00:17.9]} 68... Qh6# {[%clk 0:00:30.3]}
0-1

[Event "Late-Titled-Tuesday-Blitz-January-30-2024"]
[Site "Chess.com"]
[Date "2024.01.30"]
[Round "7"]
[White "winniethepooh04"]
[Black "sari07"]
[Result "0-1"]
[WhiteElo "2519"]
[BlackElo "2420"]
[TimeControl "180+1"]
[EndTime "15:18:20 PST"]
[Termination "sari07 won by checkmate"]

1. d4 {[%clk 0:03:00.9]} 1... d5 {[%clk 0:02:59.5]} 2. Nf3 {[%clk 0:03:01.4]}
2... Nf6 {[%clk 0:02:59.1]} 3. Bf4 {[%clk 0:03:01.8]} 3... c5 {[%clk 0:02:54.6]}
4. e3 {[%clk 0:03:02.1]} 4... Nc6 {[%clk 0:02:53.6]} 5. c3 {[%clk 0:03:02.8]}
5... Qb6 {[%clk 0:02:50.8]} 6. Qc2 {[%clk 0:03:03.1]} 6... Bf5 {[%clk
0:02:48.5]} 7. dxc5 {[%clk 0:03:03]} 7... Bxc2 {[%clk 0:02:42.4]} 8. cxb6 {[%clk
0:03:02.7]} 8... axb6 {[%clk 0:02:43.3]} 9. Na3 {[%clk 0:03:03]} 9... Bf5 {[%clk
0:02:19.2]} 10. Nb5 {[%clk 0:03:00.8]} 10... O-O-O {[%clk 0:02:12.1]} 11. a4
{[%clk 0:02:47.2]} 11... e6 {[%clk 0:02:02.1]} 12. Bc7 {[%clk 0:02:45]} 12...
Re8 {[%clk 0:01:42.9]} 13. Bxb6 {[%clk 0:02:30.1]} 13... Nd7 {[%clk 0:01:42.2]}
14. a5 {[%clk 0:02:30.4]} 14... Nxb6 {[%clk 0:01:19.1]} 15. axb6 {[%clk
0:02:31.3]} 15... Bc5 {[%clk 0:01:19.4]} 16. Be2 {[%clk 0:02:22.5]} 16... Kd7
{[%clk 0:01:12.7]} 17. Nbd4 {[%clk 0:02:20]} 17... Bg6 {[%clk 0:01:01]} 18. Bb5
{[%clk 0:02:11.1]} 18... Bxb6 {[%clk 0:00:58.9]} 19. Ne5+ {[%clk 0:02:04.5]}
19... Kd6 {[%clk 0:00:55.9]} 20. Nexc6 {[%clk 0:01:55.4]} 20... bxc6 {[%clk
0:00:55.1]} 21. Bxc6 {[%clk 0:01:55.3]} 21... Rc8 {[%clk 0:00:48.7]} 22. Ba4
{[%clk 0:01:39]} 22... Bd3 {[%clk 0:00:33.8]} 23. Bb5 {[%clk 0:01:33.4]} 23...
Ra8 {[%clk 0:00:23.2]} 24. Kd2 {[%clk 0:01:23.9]} 24... Be4 {[%clk 0:00:09.8]}
25. f3 {[%clk 0:01:18.8]} 25... Bg6 {[%clk 0:00:09.7]} 26. Bd3 {[%clk
0:01:17.7]} 26... e5 {[%clk 0:00:06.9]} 27. Ne2 {[%clk 0:01:08.4]} 27... f5
{[%clk 0:00:06.1]} 28. h4 {[%clk 0:01:00.2]} 28... e4 {[%clk 0:00:06]} 29. fxe4
{[%clk 0:01:00]} 29... fxe4 {[%clk 0:00:05.9]} 30. Bc2 {[%clk 0:00:59.7]} 30...
Rhf8 {[%clk 0:00:06.1]} 31. Nf4 {[%clk 0:00:59.8]} 31... Bf7 {[%clk 0:00:02.5]}
32. Rhd1 {[%clk 0:00:53.3]} 32... Ke5 {[%clk 0:00:01.5]} 33. Ke2 {[%clk
0:00:52.9]} 33... g6 {[%clk 0:00:01.9]} 34. Bb3 {[%clk 0:00:49.4]} 34... Rxa1
{[%clk 0:00:01.9]} 35. Rxa1 {[%clk 0:00:48.9]} 35... h6 {[%clk 0:00:02.2]} 36.
Rd1 {[%clk 0:00:47.8]} 36... Rd8 {[%clk 0:00:01.4]} 37. g4 {[%clk 0:00:43.4]}
37... g5 {[%clk 0:00:01.8]} 38. hxg5 {[%clk 0:00:41.8]} 38... hxg5 {[%clk
0:00:02.7]} 39. Ng2 {[%clk 0:00:40.4]} 39... Be6 {[%clk 0:00:03.1]} 40. Ne1
{[%clk 0:00:40.9]} 40... Bxg4+ {[%clk 0:00:02.9]} 41. Kd2 {[%clk 0:00:41.3]}
41... Bxd1 {[%clk 0:00:03.8]} 42. Kxd1 {[%clk 0:00:42.2]} 42... Bxe3 {[%clk
0:00:03]} 43. Ke2 {[%clk 0:00:42.7]} 43... Bb6 {[%clk 0:00:02.9]} 44. Ng2 {[%clk
0:00:42.9]} 44... Kf5 {[%clk 0:00:02.6]} 45. Bd1 {[%clk 0:00:42.8]} 45... d4
{[%clk 0:00:02.4]} 46. cxd4 {[%clk 0:00:42.9]} 46... Bxd4 {[%clk 0:00:03.3]} 47.
b4 {[%clk 0:00:42.7]} 47... Rb8 {[%clk 0:00:03]} 48. Kd2 {[%clk 0:00:38.3]}
48... Rxb4 {[%clk 0:00:03.1]} 49. Kc2 {[%clk 0:00:39.2]} 49... Rb2+ {[%clk
0:00:03.1]} 50. Kc1 {[%clk 0:00:37.4]} 50... Rxg2 {[%clk 0:00:04]} 51. Kb1
{[%clk 0:00:37.3]} 51... Be3 {[%clk 0:00:03.7]} 52. Ba4 {[%clk 0:00:36.1]} 52...
Rd2 {[%clk 0:00:03.7]} 53. Bc6 {[%clk 0:00:35.7]} 53... Rd4 {[%clk 0:00:04]} 54.
Ka2 {[%clk 0:00:33.6]} 54... Kf4 {[%clk 0:00:04.4]} 55. Bb5 {[%clk 0:00:32.3]}
55... g4 {[%clk 0:00:04.9]} 56. Bf1 {[%clk 0:00:32.8]} 56... g3 {[%clk
0:00:05.8]} 57. Kb3 {[%clk 0:00:32.8]} 57... Kf3 {[%clk 0:00:05.6]} 58. Kc3
{[%clk 0:00:32.6]} 58... Kf2 {[%clk 0:00:06.1]} 59. Bh3 {[%clk 0:00:32.8]} 59...
g2 {[%clk 0:00:06.1]} 60. Bxg2 {[%clk 0:00:33.7]} 60... Kxg2 {[%clk 0:00:06.9]}
61. Kb3 {[%clk 0:00:33.9]} 61... Kf2 {[%clk 0:00:07.8]} 62. Kc3 {[%clk
0:00:34.8]} 62... Ke2 {[%clk 0:00:08.7]} 63. Kb3 {[%clk 0:00:35.7]} 63... Kd2
{[%clk 0:00:09.3]} 64. Ka3 {[%clk 0:00:36]} 64... Kd3 {[%clk 0:00:10.2]} 65. Kb3
{[%clk 0:00:36.9]} 65... Rd5 {[%clk 0:00:10.9]} 66. Ka3 {[%clk 0:00:37.8]} 66...
Rc5 {[%clk 0:00:11.8]} 67. Kb4 {[%clk 0:00:38.3]} 67... Kd4 {[%clk 0:00:12.7]}
68. Ka4 {[%clk 0:00:39.2]} 68... Bd2 {[%clk 0:00:13.5]} 69. Kb3 {[%clk
0:00:39.5]} 69... e3 {[%clk 0:00:14.4]} 70. Kb2 {[%clk 0:00:39.8]} 70... e2
{[%clk 0:00:15.3]} 71. Ka3 {[%clk 0:00:40.6]} 71... e1=Q {[%clk 0:00:16.2]} 72.
Kb3 {[%clk 0:00:41]} 72... Qb1+ {[%clk 0:00:16.2]} 73. Ka4 {[%clk 0:00:41.9]}
73... Ra5# {[%clk 0:00:15.5]} 0-1

[Event "Late-Titled-Tuesday-Blitz-January-30-2024"]
[Site "Chess.com"]
[Date "2024.01.30"]
[Round "7"]
[White "DenLaz"]
[Black "Njal28"]
[Result "0-1"]
[WhiteElo "3043"]
[BlackElo "3060"]
[TimeControl "180+1"]
[EndTime "15:18:22 PST"]
[Termination "Njal28 won by resignation"]

1. d4 {[%clk 0:03:00.9]} 1... Nf6 {[%clk 0:03:00.2]} 2. c4 {[%clk 0:02:56]} 2...
e6 {[%clk 0:03:00.6]} 3. Nf3 {[%clk 0:02:56.6]} 3... d5 {[%clk 0:02:58.8]} 4. g3
{[%clk 0:02:56.3]} 4... Be7 {[%clk 0:02:58.6]} 5. Bg2 {[%clk 0:02:56.4]} 5...
O-O {[%clk 0:02:59.3]} 6. O-O {[%clk 0:02:57]} 6... dxc4 {[%clk 0:02:59.9]} 7.
Qc2 {[%clk 0:02:57.7]} 7... a6 {[%clk 0:03:00.6]} 8. a4 {[%clk 0:02:58]} 8...
Bd7 {[%clk 0:03:00.9]} 9. Qxc4 {[%clk 0:02:58.6]} 9... Bc6 {[%clk 0:03:01.3]}
10. Bg5 {[%clk 0:02:59.3]} 10... a5 {[%clk 0:02:51.4]} 11. Rd1 {[%clk
0:02:57.7]} 11... Nbd7 {[%clk 0:02:46.1]} 12. Nc3 {[%clk 0:02:55.6]} 12... Ra6
{[%clk 0:02:46.3]} 13. e3 {[%clk 0:02:54]} 13... Rb6 {[%clk 0:02:45.1]} 14. Qe2
{[%clk 0:02:53.6]} 14... Bxf3 {[%clk 0:02:32.8]} 15. Bxf3 {[%clk 0:02:52.6]}
15... c6 {[%clk 0:02:33.7]} 16. e4 {[%clk 0:02:51.9]} 16... Nxe4 {[%clk
0:02:13.4]} 17. Be3 {[%clk 0:02:28.6]} 17... Nef6 {[%clk 0:02:03.4]} 18. d5
{[%clk 0:02:26.2]} 18... exd5 {[%clk 0:02:04.3]} 19. Bxb6 {[%clk 0:02:25.3]}
19... Nxb6 {[%clk 0:02:05.2]} 20. Kg2 {[%clk 0:02:22.9]} 20... Re8 {[%clk
0:02:01.3]} 21. Qc2 {[%clk 0:02:13.4]} 21... Bb4 {[%clk 0:01:47.7]} 22. Re1
{[%clk 0:02:09]} 22... g6 {[%clk 0:01:47.7]} 23. Rxe8+ {[%clk 0:01:57.7]} 23...
Qxe8 {[%clk 0:01:48.6]} 24. Rd1 {[%clk 0:01:57.3]} 24... Nc4 {[%clk 0:01:44.3]}
25. Na2 {[%clk 0:01:52.5]} 25... Bd6 {[%clk 0:01:39.8]} 26. b3 {[%clk
0:01:50.6]} 26... Ne5 {[%clk 0:01:36.7]} 27. Re1 {[%clk 0:01:48.3]} 27... Qd8
{[%clk 0:01:34.7]} 28. Qc3 {[%clk 0:01:47.5]} 28... Nxf3 {[%clk 0:01:15.5]} 29.
Qxf3 {[%clk 0:01:48.4]} 29... Ne4 {[%clk 0:01:14.9]} 30. Qd3 {[%clk 0:01:18]}
30... Qb6 {[%clk 0:01:13.3]} 31. Re2 {[%clk 0:01:08.5]} 31... Bf8 {[%clk
0:00:53.7]} 32. Nc1 {[%clk 0:00:47.2]} 32... Bh6 {[%clk 0:00:50.4]} 33. f3
{[%clk 0:00:47.1]} 33... Nd6 {[%clk 0:00:41.5]} 34. Na2 {[%clk 0:00:40.5]} 34...
Bg7 {[%clk 0:00:35]} 35. g4 {[%clk 0:00:30.6]} 35... h6 {[%clk 0:00:34]} 36. Qe3
{[%clk 0:00:29.9]} 36... d4 {[%clk 0:00:22.8]} 37. Qd3 {[%clk 0:00:28.9]} 37...
Qc5 {[%clk 0:00:18.5]} 38. Rc2 {[%clk 0:00:23.7]} 38... Qg5 {[%clk 0:00:17.9]}
39. Qd2 {[%clk 0:00:17.1]} 39... Qd5 {[%clk 0:00:15.4]} 40. Qd3 {[%clk
0:00:17.6]} 40... h5 {[%clk 0:00:15.7]} 41. h3 {[%clk 0:00:17.6]} 41... h4
{[%clk 0:00:10.6]} 42. Re2 {[%clk 0:00:17.5]} 42... b5 {[%clk 0:00:05.2]} 43.
Nc1 {[%clk 0:00:09.5]} 43... bxa4 {[%clk 0:00:05.6]} 44. bxa4 {[%clk 0:00:09.5]}
44... c5 {[%clk 0:00:06.4]} 45. Qb3 {[%clk 0:00:04.2]} 45... c4 {[%clk
0:00:05.8]} 46. Qb8+ {[%clk 0:00:04.4]} 46... Bf8 {[%clk 0:00:04.4]} 47. Rd2
{[%clk 0:00:02.4]} 47... d3 {[%clk 0:00:04.7]} 48. Qb2 {[%clk 0:00:02.2]} 48...
Bg7 {[%clk 0:00:04.6]} 49. Qb8+ {[%clk 0:00:02.1]} 49... Kh7 {[%clk 0:00:05.3]}
50. Rd1 {[%clk 0:00:02.8]} 50... Qe5 {[%clk 0:00:03.7]} 51. Qb6 {[%clk
0:00:02.9]} 51... Qg3+ {[%clk 0:00:04.1]} 52. Kh1 {[%clk 0:00:02.1]} 52... Qxf3+
{[%clk 0:00:04.8]} 0-1

[Event "Late-Titled-Tuesday-Blitz-January-30-2024"]
[Site "Chess.com"]
[Date "2024.01.30"]
[Round "7"]
[White "GiorgianBarbosa"]
[Black "Arteler"]
[Result "1-0"]
[WhiteElo "2469"]
[BlackElo "2560"]
[TimeControl "180+1"]
[EndTime "15:18:25 PST"]
[Termination "GiorgianBarbosa won by resignation"]

1. c4 {[%clk 0:03:00.9]} 1... c6 {[%clk 0:02:53.3]} 2. g3 {[%clk 0:03:01.8]}
2... d5 {[%clk 0:02:53.4]} 3. Bg2 {[%clk 0:03:02.7]} 3... Nf6 {[%clk 0:02:53.4]}
4. Nf3 {[%clk 0:03:03.2]} 4... Bg4 {[%clk 0:02:50.9]} 5. Ne5 {[%clk 0:03:00.4]}
5... Bh5 {[%clk 0:02:50.8]} 6. cxd5 {[%clk 0:02:58.7]} 6... cxd5 {[%clk
0:02:51.1]} 7. O-O {[%clk 0:02:58.7]} 7... e6 {[%clk 0:02:49.3]} 8. d4 {[%clk
0:02:58.4]} 8... Nc6 {[%clk 0:02:43.4]} 9. Nxc6 {[%clk 0:02:53]} 9... bxc6
{[%clk 0:02:44.3]} 10. Qc2 {[%clk 0:02:50.1]} 10... Rc8 {[%clk 0:02:38.7]} 11.
Bg5 {[%clk 0:02:47.2]} 11... Be7 {[%clk 0:02:36.8]} 12. Nc3 {[%clk 0:02:44.9]}
12... c5 {[%clk 0:02:36.3]} 13. e4 {[%clk 0:01:49]} 13... cxd4 {[%clk
0:02:33.4]} 14. Qa4+ {[%clk 0:01:48.1]} 14... Qd7 {[%clk 0:02:33.5]} 15. Qxd4
{[%clk 0:01:44.8]} 15... dxe4 {[%clk 0:02:28.7]} 16. Bxf6 {[%clk 0:01:33.7]}
16... Bxf6 {[%clk 0:02:27]} 17. Qxe4 {[%clk 0:01:33.3]} 17... Bxc3 {[%clk
0:02:01.4]} 18. bxc3 {[%clk 0:01:31]} 18... Rxc3 {[%clk 0:02:02.3]} 19. Qe5
{[%clk 0:01:25.5]} 19... Rc2 {[%clk 0:01:20.9]} 20. Qxh5 {[%clk 0:01:21.7]}
20... O-O {[%clk 0:01:21.2]} 21. a4 {[%clk 0:01:10.6]} 21... g6 {[%clk
0:01:19.4]} 22. Qe5 {[%clk 0:01:07.6]} 22... Rfc8 {[%clk 0:01:18.2]} 23. Qa5
{[%clk 0:01:06.1]} 23... R8c5 {[%clk 0:01:15.9]} 24. Qb4 {[%clk 0:01:05.3]}
24... a5 {[%clk 0:01:16.4]} 25. Qf4 {[%clk 0:01:00]} 25... Kg7 {[%clk
0:01:14.4]} 26. h4 {[%clk 0:00:58.6]} 26... R2c4 {[%clk 0:01:10.2]} 27. Qe3
{[%clk 0:00:57]} 27... Qd4 {[%clk 0:01:10]} 28. Qxd4+ {[%clk 0:00:55.1]} 28...
Rxd4 {[%clk 0:01:10.9]} 29. Rfd1 {[%clk 0:00:53.3]} 29... Rb4 {[%clk 0:01:08.1]}
30. Rdb1 {[%clk 0:00:48.5]} 30... Rd4 {[%clk 0:01:02]} 31. Rb5 {[%clk
0:00:46.8]} 31... Rxa4 {[%clk 0:01:02.1]} 32. Rxc5 {[%clk 0:00:36.3]} 32...
Rxa1+ {[%clk 0:01:02.1]} 33. Bf1 {[%clk 0:00:36.3]} 33... a4 {[%clk 0:01:00.9]}
34. Ra5 {[%clk 0:00:36.1]} 34... h6 {[%clk 0:01:00.3]} 35. Kg2 {[%clk
0:00:36.4]} 35... a3 {[%clk 0:00:58.3]} 36. g4 {[%clk 0:00:33.1]} 36... Kf6
{[%clk 0:00:55.7]} 37. g5+ {[%clk 0:00:32.6]} 37... hxg5 {[%clk 0:00:55.5]} 38.
hxg5+ {[%clk 0:00:33.5]} 38... Ke7 {[%clk 0:00:54]} 39. Ra7+ {[%clk 0:00:33.8]}
39... Kd6 {[%clk 0:00:52.7]} 40. Rxf7 {[%clk 0:00:32.3]} 40... Ke5 {[%clk
0:00:52.8]} 41. Ra7 {[%clk 0:00:29.9]} 41... Kf4 {[%clk 0:00:53.2]} 42. Ra5
{[%clk 0:00:25.6]} 42... e5 {[%clk 0:00:52.5]} 43. Bd3 {[%clk 0:00:25]} 43... e4
{[%clk 0:00:50.9]} 44. Ra4 {[%clk 0:00:19.8]} 44... Re1 {[%clk 0:00:48.5]} 45.
Bc2 {[%clk 0:00:16.8]} 45... Kxg5 {[%clk 0:00:47.5]} 46. Rxa3 {[%clk 0:00:15.6]}
46... Re2 {[%clk 0:00:47.9]} 47. Rc3 {[%clk 0:00:11.4]} 47... e3 {[%clk
0:00:45.3]} 48. Rc5+ {[%clk 0:00:07.6]} 48... Kf4 {[%clk 0:00:44.3]} 49. Rc4+
{[%clk 0:00:07.8]} 49... Kg5 {[%clk 0:00:43.6]} 50. Kg3 {[%clk 0:00:07.1]} 50...
exf2 {[%clk 0:00:42]} 51. Rc5+ {[%clk 0:00:06.5]} 51... Kf6 {[%clk 0:00:41.6]}
52. Kg2 {[%clk 0:00:05.5]} 52... g5 {[%clk 0:00:37.4]} 53. Bd3 {[%clk
0:00:04.2]} 53... Rd2 {[%clk 0:00:38]} 54. Bf1 {[%clk 0:00:04.3]} 54... Kg6
{[%clk 0:00:35]} 55. Rc3 {[%clk 0:00:04.6]} 55... g4 {[%clk 0:00:32.9]} 56. Re3
{[%clk 0:00:04.9]} 56... Kg5 {[%clk 0:00:31.3]} 57. Be2 {[%clk 0:00:05]} 57...
Kf4 {[%clk 0:00:27.4]} 58. Re8 {[%clk 0:00:04.1]} 58... g3 {[%clk 0:00:27.6]}
59. Bf1 {[%clk 0:00:03.1]} 59... Rd1 {[%clk 0:00:27.8]} 60. Rf8+ {[%clk
0:00:02.9]} 60... Kg4 {[%clk 0:00:27.5]} 61. Rg8+ {[%clk 0:00:03.3]} 61... Kf4
{[%clk 0:00:28]} 62. Rf8+ {[%clk 0:00:03.1]} 62... Kg4 {[%clk 0:00:28]} 63. Be2+
{[%clk 0:00:02.8]} 1-0